{"text_format":"1","workbook":"xlsx","n_sheets":1,"sheets":["Farmularz oferty"],"not_rendered":{"charts":0,"images":0,"macros":1,"external_links":0,"defined_names":0,"comments":0,"pivot_tables":0},"unopened":[],"bounds":{"document_bytes":16777216,"sheet_cells":100000,"rows_first":2000,"rows_last":500,"rows_between":2000,"halvings":0,"cell_chars":16384,"cell_head_chars":4096},"cells_cut":0,"cells_raw":0,"read":"whole","date_system":"1900"}

{"sheet":"Farmularz oferty","index":0,"n_rows":193,"n_cols":9,"rows_kept":193,"cut":false,"hidden":false,"merged":[[189,1,189,2],[36,1,37,1],[38,1,39,1],[39,2,39,4],[175,4,175,5],[176,4,176,5],[177,4,177,5],[174,4,174,5],[137,0,137,7],[112,0,112,4],[37,2,37,4],[167,1,167,4],[163,2,163,3],[160,2,160,3],[121,0,121,6],[173,4,173,5],[17,2,17,4],[18,2,18,4],[20,2,20,4],[21,2,21,4],[23,2,23,4],[24,2,24,4],[26,2,26,4],[27,2,27,4],[29,2,29,4],[30,2,30,4],[66,0,66,6],[90,0,90,6],[134,0,134,3],[135,0,135,5],[91,0,91,7],[16,1,16,8],[17,0,18,0],[23,0,24,0],[26,0,27,0],[110,0,110,3],[29,0,30,0],[20,0,21,0],[68,0,68,8],[45,0,45,8],[43,0,43,8],[93,0,93,4],[32,2,32,4],[33,2,33,4],[67,0,67,6],[32,0,33,0],[35,1,35,4],[191,2,191,3],[192,2,192,3],[8,1,8,8],[11,1,11,8],[14,1,14,8],[119,0,119,3],[162,2,162,3],[154,0,155,0],[151,0,151,5],[152,2,152,3],[142,0,142,7],[149,0,149,7],[154,1,155,1],[154,2,154,3],[155,2,155,3],[158,2,158,3],[4,1,4,2],[1,1,2,8],[180,0,180,1],[176,2,176,3],[177,2,177,3],[172,0,172,3],[144,0,144,7],[164,2,164,3],[153,2,153,3],[156,2,156,3],[157,2,157,3],[159,2,159,3],[173,2,173,3],[174,2,174,3],[175,2,175,3],[161,2,161,3]]}
[null,"oznaczenie sprawy:  1400/DW00/ZU/KZ/2021/0000012428"]
[null,"ZAŁĄCZNIK NR 1 - FORMULARZ OFERTY"]
[]
[]
[]
[null,null,"(pieczęć wykonawcy)"]
[]
[null,"Ja, niżej podpisany (My niżej podpisani):"]
[]
[]
[null,"działając w imieniu i na rzecz:"]
[]
[]
[null,"Składam(y) ofertę na wykonanie zamówienia, którego przedmiotem jest:"]
[null,"Kompleksowa obsługa wydruku masowego dokumentacji wychodzącej dla GK ENEA"]
[]
[null,"Oferujemy wykonanie zamówienia zgodnie z opisem przedmiotu zamówienia:"]
[1,"ŁĄCZNA CENA NETTO OFERTY DLA                                        Część I wydruk w Wariancie I - okres 36 miesięcy\na) Dokumenty Rozliczeniowe, Dokumenty Windykacyjne, Drukarka Online, Pisma Informacyjne",{"$f":"SUM(H67,H91)","v":0}]
[null,"CENA NETTO SŁOWNIE: ",{"$f":"Slownie(C18)","v":"zero groszy"}]
[]
["1a","ŁĄCZNA CENA NETTO OFERTY DLA                                        Część I wydruk w Wariancie II- okres 36 miesięcy\na) Dokumenty Rozliczeniowe, Dokumenty Windykacyjne, Drukarka Online, Pisma Informacyjne",{"$f":"SUM(I68,I92)","v":0}]
[null,"CENA NETTO SŁOWNIE: ",{"$f":"Slownie(C21)","v":"zero groszy"}]
[]
[2,"ŁĄCZNA CENA NETTO OFERTY DLA                                        Część I – kolor– okres 36 miesięcy.\nb) Wydruk materiałów marketingowych/ pozostałe usługi",{"$f":"SUM(E111)","v":0}]
[null,"CENA NETTO SŁOWNIE: ",{"$f":"Slownie(C24)","v":"zero groszy"}]
[]
[3,"ŁĄCZNA CENA NETTO OFERTY DLA                                        Część I – czerń– okres 36 miesięcy.\nc) Wydruk materiałów marketingowych/ pozostałe usługi",{"$f":"SUM(E120)","v":0}]
[null,"CENA NETTO SŁOWNIE: ",{"$f":"Slownie(C27)","v":"zero groszy"}]
[]
[4,"ŁĄCZNA CENA NETTO OFERTY DLA                                        Część II - Wydruk kopert oraz dokumentów informacyjnych Wariant I  - okres 36 miesięcy.",{"$f":"SUM(E135)","v":0}]
[null,"CENA NETTO SŁOWNIE: ",{"$f":"Slownie(C30)","v":"zero groszy"}]
[]
["4a","ŁĄCZNA CENA NETTO OFERTY DLA                                        Część II - Wydruk kopert oraz dokumentów informacyjnych Wariant II - okres 36 miesięcy.",{"$f":"SUM(G136)","v":0}]
[null,"CENA NETTO SŁOWNIE: ",{"$f":"Slownie(C33)","v":"zero groszy"}]
[]
[null,"Podsumowanie wartości do kryterium oceny ofert numer 1 i 2:"]
[null,"1. CENA ZA WYDRUK W KOLORZE (Wariant I)                     (Część I i Część II - wydruk w Wariancie I)",{"$f":"SUM(C18,C24,C30)","v":0}]
[null,null,{"$f":"Slownie(C37)","v":"zero groszy"}]
[null,"2. CENA ZA WYDRUK W CZERNI (Wariant II)                      (Część I i Część II - wydruk w Wariancie II)",{"$f":"SUM(C21,C27,C33)","v":0}]
[null,null,{"$f":"Slownie(C39)","v":"zero groszy"}]
[]
[]
[]
["1.  Część I wydruk w Wariancie I i Wariancie II- okres 36 miesięcy\na) Dokumenty Rozliczeniowe, Dokumenty Windykacyjne, Drukarka Online, Pisma Informacyjne"]
["Lp.",null,"Obecny rodzaj koperty stosowany przez Zamawiającego","Proponowany rodzaj koperty zastosowany przez Wykonawcę do wyceny ","Szacowany wolumen ","Wydruk w Wariancie I - kolor (cena jednostkowa w PLN netto)","Wydruk w Wariancie II - czerń (cena jednostkowa w PLN netto)","Wydruk w Wariancie I - SUMA  (łączna wartość w PLN netto)","Wydruk w Wariancie II - SUMA  (łączna wartość w PLN netto)"]
["I. Ilość kartek - przesyłka polecona"]
["1.","Wydruk i zakopertowanie  1 kartki","C5",null,2412800,null,null,{"$f":"F47*E47","v":0},{"$f":"E47*G47","v":0}]
["2.","Wydruk i zakopertowanie  2 kartek","C5",null,388178,null,null,{"$f":"F48*E48","v":0},{"$f":"E48*G48","v":0}]
["3.","Wydruk i zakopertowanie  3 kartek","C5",null,70973,null,null,0,0]
["4.","Wydruk i zakopertowanie  4  kartek","C5",null,18077,null,null,0,0]
["5.","Wydruk i zakopertowanie  5  kartek","C5",null,7184,null,null,0,0]
["6.","Wydruk i zakopertowanie  6  kartek","C5",null,3720,null,null,0,0]
["7.","Wydruk i zakopertowanie  7 kartek","C5",null,1811,null,null,0,0]
["8.","Wydruk i zakopertowanie  8 kartek","C5",null,1455,null,null,0,0]
["9.","Wydruk i zakopertowanie  9 kartek","C5",null,1023,null,null,0,0]
["10.","Wydruk i zakopertowanie  10 kartek","C5",null,871,null,null,0,0]
["11.","Wydruk i zakopertowanie  11 kartek","C5",null,395,null,null,0,0]
["12.","Wydruk i zakopertowanie  12 kartek","C5",null,612,null,null,0,0]
["13.","Wydruk i zakopertowanie  13 kartek","C5",null,7594,null,null,0,0]
["14.","Wydruk i zakopertowanie  14 kartek","C5",null,388,null,null,0,0]
["15.","Wydruk i zakopertowanie  15 kartek","C4",null,391,null,null,0,0]
["16.","Wydruk i zakopertowanie  16 kartek","C4",null,255,null,null,0,0]
["17.","Wydruk i zakopertowanie  17 kartek","C4",null,193,null,null,0,0]
["18.","Wydruk i zakopertowanie  18 kartek","C4",null,217,null,null,0,0]
["19.","Wydruk i zakopertowanie  19 kartek","C4",null,118,null,null,0,0]
["20.","Wydruk i zakopertowanie  od 20 kartek i powyżej","C4",null,30409,null,null,0,0]
["1. ŁĄCZNA CENA NETTO OFERTY DLA Część I wydruk w Wariancie I - okres 36 miesięcy - przesyłki polecone\na) Dokumenty Rozliczeniowe, Dokumenty Windykacyjne, Drukarka Online, Pisma Informacyjne",null,null,null,null,null,null,{"$f":"SUM(H47:H66)","v":0}]
["1a. ŁĄCZNA CENA NETTO OFERTY DLA  Część I wydruk w Wariancie II- okres 36 miesięcy - przesyłki polecone\na) Dokumenty Rozliczeniowe, Dokumenty Windykacyjne, Drukarka Online, Pisma Informacyjne",null,null,null,null,null,null,null,{"$f":"SUM(I47:I66)","v":0}]
["II. Ilość kartek - przesyłka zwykła"]
["1.","Wydruk i zakopertowanie  1 kartki","C5",null,27121320,null,null,{"$f":"F70*E70","v":0},{"$f":"E70*G70","v":0}]
["2.","Wydruk i zakopertowanie  2 kartek","C5",null,5628311,null,null,{"$f":"F71*E71","v":0},{"$f":"E71*G71","v":0}]
["3.","Wydruk i zakopertowanie  3 kartek","C5",null,872313,null,null,0,0]
["4.","Wydruk i zakopertowanie  4  kartek","C5",null,130684,null,null,0,0]
["5.","Wydruk i zakopertowanie  5  kartek","C5",null,39210,null,null,0,0]
["6.","Wydruk i zakopertowanie  6  kartek","C5",null,25485,null,null,0,0]
["7.","Wydruk i zakopertowanie  7 kartek","C5",null,12532,null,null,0,0]
["8.","Wydruk i zakopertowanie  8 kartek","C5",null,14196,null,null,0,0]
["9.","Wydruk i zakopertowanie  9 kartek","C5",null,5364,null,null,0,0]
["10.","Wydruk i zakopertowanie  10 kartek","C5",null,7325,null,null,0,0]
["11.","Wydruk i zakopertowanie  11 kartek","C5",null,3853,null,null,0,0]
["12.","Wydruk i zakopertowanie  12 kartek","C5",null,4797,null,null,0,0]
["13.","Wydruk i zakopertowanie  13 kartek","C5",null,5951,null,null,0,0]
["14.","Wydruk i zakopertowanie  14 kartek","C5",null,5688,null,null,0,0]
["15.","Wydruk i zakopertowanie  15 kartek","C4",null,3153,null,null,0,0]
["16.","Wydruk i zakopertowanie  16 kartek","C4",null,13271,null,null,0,0]
["17.","Wydruk i zakopertowanie  17 kartek","C4",null,2659,null,null,0,0]
["18.","Wydruk i zakopertowanie  18 kartek","C4",null,4678,null,null,0,0]
["19.","Wydruk i zakopertowanie  19 kartek","C4",null,1941,null,null,0,0]
["20.","Wydruk i zakopertowanie  od 20 kartek i powyżej","C4",null,203136,null,null,0,0]
["21.","Pisma informacyjne wysyłane na podstawie przesłanej bazy (1 kartka A4, dwustronnie, w kolorze)","C5",null,1800000,null,null,0,0]
["1. ŁĄCZNA CENA NETTO OFERTY DLA Część I wydruk w Wariancie II - okres 36 miesięcy - przesyłki zwykłe\na) Dokumenty Rozliczeniowe, Dokumenty Windykacyjne, Drukarka Online, Pisma Informacyjne",null,null,null,null,null,null,{"$f":"SUM(H70:H90)","v":0}]
["1a. ŁĄCZNA CENA NETTO OFERTY DLA  Część I wydruk w Wariancie II- okres 36 miesięcy - przesyłki zwykłe\na) Dokumenty Rozliczeniowe, Dokumenty Windykacyjne, Drukarka Online, Pisma Informacyjne",null,null,null,null,null,null,null,{"$f":"SUM(I70:I90)","v":0}]
[]
["2. Część I – kolor– okres 36 miesięcy.\nb) Wydruk materiałów marketingowych/ pozostałe usługi"]
["L.p.","Rodzaj","Szacowany wolumen ","Wydruk w Wariancie I - kolor (cena jednostkowa w PLN netto)","Wydruk w Wariancie I - SUMA  (łączna wartość w PLN netto)"]
["1.","Ulotka informacyjna 1xDL  dwustronna\nPapier: kreda mat 170g\ndruk CMYK 4+4",500000,null,{"$f":"D96*C96","v":0}]
["2.","Ulotka informacyjna 1xDL dwustronna\nPapier: offset 90g\nDruk CMYK 4+4",1000000,null,0]
["3.","Ulotka informacyjna 2xDL, składana do DL, dwustronna\nPapier: offset 90g\nDruk CMYK 4+4\nFalcowanie",6000000,null,0]
["4.","Ulotka informacyjna 3xDL\nskładana w \"C\" do DL\ndwustronna\npapier: offset 90g\ndruk CMYK 4+4\nfalcowanie",1000000,null,0]
["5.","Plakat 70x100\nPapier: kreda mat 200g\nDruk: CMYK 4+0",1000,null,0]
["6.","Gazetka produktowa A5\nA4 złożone do A5\nObjetość: 8 stron\nKolorystyka: CMYK 4+4\nPapier: offset 90 g Falcowanie\nSzycie: 2 x zszywka",4800000,null,0]
["7.","Ulotka żarówka\nFormat 260x210 mm złożona do 130-205 mm, połowa to wykrojnik w kształcie połowy żarówki - pół żarówki wystaje z kartki\nPapier: offset 100g\nKolorystyka: CMYK 4+4",4000000,null,0]
["8.","Koperty C5 z dodatkowym nadrukiem (nadruk zmienny)",8000000,null,0]
["9.","Ulotka A5 \n4 strony złożone do A5\nPapier: offset 100g\nDruk: CMYK 4+4",2000000,null,0]
["10.","Pismo/ ulotka A4 - papier biały, format A4 o gramaturze co\nnajmniej 80 g/m2, zadruk 4+4.",600000,null,0]
["11.","Koperty kurierskie",300000,null,0]
["12.","Insertowanie ulotek do kopert",19000000,null,0]
["13.","Obsługa zwrotów pocztowych",300000,null,0]
["14.","Koszt godziny informatycznej",1500,null,0]
["15.","Pismo/ ulotka A4 - papier biały, format A4 o gramaturze co\nnajmniej 80 g/m2, zadruk 4+0.",600000,null,0]
["2. ŁĄCZNA CENA NETTO OFERTY DLA Część I – kolor– okres 36 miesięcy.\nb) Wydruk materiałów marketingowych/ pozostałe usługi",null,null,null,{"$f":"SUM(E96:E110)","v":0}]
[]
["3. Część I – czerń– okres 36 miesięcy.\nc) Wydruk materiałów marketingowych/ pozostałe usługi"]
["L.p.","Rodzaj","Szacowany wolumen ","Wydruk w Wariancie II - czerń","Wydruk w Wariancie II - SUMA"]
["1.","Pismo/ ulotka A4 - papier biały, format A4 o gramaturze co\nnajmniej 80 g/m2, zadruk 4+4.",600000,null,{"$f":"D115*C115","v":0}]
["2.","Insertowanie ulotek do kopert",600000,null,{"$f":"D116*C116","v":0}]
["3.","Obsługa zwrotów pocztowych",300000,null,0]
["4.","Koszt godziny informatycznej",1500,null,0]
["5.","Pismo/ ulotka A4 - papier biały, format A4 o gramaturze co\nnajmniej 80 g/m2, zadruk 4+0.",600000,null,0]
["3. ŁĄCZNA CENA NETTO OFERTY DLA Część I – czerń– okres 36 miesięcy.\nc) Wydruk materiałów marketingowych/ pozostałe usługi",null,null,null,{"$f":"SUM(E115:E119)","v":0}]
[]
["4. Część II - Wydruk kopert oraz dokumentów informacyjnych Wariant I i Wariant II - okres 36 miesięcy."]
["Lp","Koszty wydruku materiałów\ninformacyjnych","Szacowany wolumen ","Wydruk w Wariancie I - kolor (cena jednostkowa w PLN netto)","Wydruk w Wariancie I - SUMA  (łączna wartość w PLN netto)","Wydruk w Wariancie II - czerń (cena jednostkowa w PLN netto)","Wydruk w Wariancie II - SUMA  (łączna wartość w PLN netto)"]
["1.","Koperty do pakowania ręcznego, C5\nz okienkiem (około 100 różnych\nadresów na kopertach)",1239000,null,{"$f":"C124*D124","v":0},null,{"$f":"F124*C124","v":0}]
["2.","Koperty do pakowania ręcznego, C5\nbez okienka (około 100 różnych\nadresów na kopertach)",366000,null,0,null,0]
["3.","Koperty do pakowania ręcznego, C4\nz okienkiem (około 100 różnych\nadresów na kopertach)",591000,null,0,null,0]
["4.","Koperty do pakowania ręcznego, C4\nbez okienka (około 100 różnych\nadresów na kopertach)",306000,null,0,null,0]
["5.","Koperty zwrotne do pakowania\nręcznego, C4 bez okienka (około\n100 różnych adresów na kopertach)",45000,null,0,null,0]
["6.","Koperty zwrotne do pakowania\nręcznego, C5 bez okienka (około\n100 różnych adresów na kopertach)",33000,null,0,null,0]
["7.","Papier firmowy/ listownik ( około\n50 różnych adresów), jednostronny,\nA4, w kolorze",72000,null,0,null,0]
["8.","Wnioski - kartki zadrukowane\njednostronne, A4, w kolorze, 1\nkartka",1022100,null,0,null,0]
["9.","Wnioski - kartki zadrukowane\ndwustronne, A4, w kolorze, 1 kartka ",6573000,null,0,null,0]
["10.","Zszycie wniosków wielokartkowych",1906500,null,0,null,0]
["11.","Przygotowanie paczek kurierskich ",4800,null,0,null,0]
["4. ŁĄCZNA CENA NETTO OFERTY DLA Część II - Wydruk kopert oraz dokumentów informacyjnych Wariant I  - okres 36 miesięcy.",null,null,null,{"$f":"SUM(E124:E134)","v":0}]
["4a. ŁĄCZNA CENA NETTO OFERTY DLA Część II - Wydruk kopert oraz dokumentów informacyjnych Wariant I  - okres 36 miesięcy.",null,null,null,null,null,{"$f":"SUM(G124:G134)","v":0}]
[]
["3. a) Informacje dodatkowe – Wariant I – dotyczy produkcji standardowej tj. faktur, wezwań itp."]
["Lp.","Usługa ","Wolumen","Koszt\njednostkowy C5*\n jednym\nokienkiem","Koszt\njednostkowy C5*\nz dwoma\nokienkami","Koszt\njednostkowy C4\n z jednym\nokienkiem","Koszt\njednostkowy C4\n z dwoma\nokienkami","Czas\nrealizacji\nzamówienia\n(dni robocze)"]
["1.","Zamówienie kopert\nz innym logotypem ","0-1000 "]
["2.","Zamówienie kopert\nz innym logotypem ","1001-5000 "]
["3.","Zamówienie kopert\nz innym logotypem ","5001-10000 "]
["*Należy uwzględnić format zaproponowany w 1.Część I wydruk w Wariancie I i Wariancie II- okres 36 miesięcy; a) Dokumenty Rozliczeniowe, Dokumenty Windykacyjne, Drukarka Online, Pisma Informacyjne; I. Ilość kartek - przesyłka polecona - pkt. 1. (Wydruk i zakopertowanie  1 kartki) oraz format zaproponowany w 1.Część I wydruk w Wariancie I i Wariancie II- okres 36 miesięcy; a) Dokumenty Rozliczeniowe, Dokumenty Windykacyjne, Drukarka Online, Pisma Informacyjne; I. Ilość kartek - przesyłka zwykła- pkt. 1. (Wydruk i zakopertowanie  1 kartki)"]
[]
["3.b) Informacje dodatkowe – Wariant II – dotyczy produkcji standardowej tj. faktur, wezwań itp."]
["Lp.","Usługa ","Wolumen","Koszt\njednostkowy C5*\n jednym\nokienkiem","Koszt\njednostkowy C5*\nz dwoma\nokienkami","Koszt\njednostkowy C4\n z jednym\nokienkiem","Koszt\njednostkowy C4\n z dwoma\nokienkami","Czas\nrealizacji\nzamówienia\n(dni robocze)"]
["1.","Zamówienie kopert\nz innym logotypem ","0-1000 "]
["2.","Zamówienie kopert\nz innym logotypem ","1001-5000 "]
["3.","Zamówienie kopert\nz innym logotypem ","5001-10000 "]
["*Należy uwzględnić format zaproponowany w 1.Część I wydruk w Wariancie I i Wariancie II- okres 36 miesięcy; a) Dokumenty Rozliczeniowe, Dokumenty Windykacyjne, Drukarka Online, Pisma Informacyjne; I. Ilość kartek - przesyłka polecona - pkt. 1. (Wydruk i zakopertowanie  1 kartki) oraz format zaproponowany w 1.Część I wydruk w Wariancie I i Wariancie II- okres 36 miesięcy; a) Dokumenty Rozliczeniowe, Dokumenty Windykacyjne, Drukarka Online, Pisma Informacyjne; I. Ilość kartek - przesyłka zwykła- pkt. 1. (Wydruk i zakopertowanie  1 kartki)"]
[]
["4. Czas realizacji zleceń."]
["Lp.","Usługa","Czas maksymalny określony przez Zamawiajacego",null,"Termin proponowany przez Wykonawcę (uwaga: nie dłuszy niż czas maksymalny określony przez Zamawiajacego. Uwaga nie dotyczy pkt. 1)","Uwagi"]
["1.","Przetworzenie i przygotowanie do produkcji danych (dokumenty rozliczeniowe, windykacyjne, Drukarka Online)."]
["2.","Przygotowanie i przedstawienie do akceptacji Zamawiającego zwizualizowanych dokumentów - dotyczy wysyłki pism informacyjnych do Klientów na podstawie otrzymanej bazy, zleceń dodatkowych. ","4 dni roboczych od daty otrzymania bazy w przypadku akcji nowych bądź jednorazowych"]
[null,null,"2 dni robocze od daty otrzymania bazy w przypadku akcji cyklicznych"]
["3.","Przekazanie do nadania - dotyczy wysyłki pism informacyjnych do Klientów na podstawie otrzymanej bazy, zleceń dodatkowych. ","W kolejnym dniu roboczym po otrzymaniu od Zamawiającego akceptacji próbek."]
["4.","Naniesienie poprawek zgłoszonych przez Zamawiającego do zwizualizowanych dokumentów i ponowne przesłanie próbek - dotyczy wszystkich dokumentów oraz każdego zlecenia/ projektu.","1 dzień roboczy"]
["5.","Zmiana przekazów marketingowych na fakturach bez względu na ilość dedykowanych przekazów i zmiennych.","3 dni robocze od daty otrzymania zlecenia i projektu graficznego"]
["6.","Zmiana treści stałych (przypisy, dane teleadresowe, stałe komunikaty).","Przgotowanie wizuaizacji - 3 dni robocze.\nWdrożenie - kolejny dzień roboczy po otrzymaniu akceptacji przez Zamawiającego. "]
["7.","Przygotowanie wizualizacji kopert lub materiałów informacyjnych zamawianych w ramach Części II. ","3 dni robocze od momentu otrzymania poprawnego zestawienia."]
["8.","Realizacja zamówienia na materiały informacyjne i koperty.","21 dni roboczych od daty otrzymania akceptacji zwizualizowanych dokumentów. "]
["9.","Przygotowanie wizualizacji materiałów marketingowych (ulotki, koperty z dodatkowym nadrukiem).","3 dni robocze od momentu otrzymania wzoru."]
["10.","Realizacja zamówienia na materiały marketingowe (ulotki, koperty z dodatkowym nadrukiem).","7 dni roboczych od daty otrzymania akceptacji projektu graficznego."]
["11.","Przeniesienie produkcji do ośrodka zapasowego. ","48 godzin"]
[]
[]
[null,"WOLUMEN WYDRUKU do kryterium oceny ofert numer 3:"]
[null,"Rodzaj dokumentu","Wymagany minimalny wolumen zrealizowany w terminie D+0","Wolumen możliwy do zrealizowania w terminie D+0","Uwagi"]
[null,"Dokumenty rozliczeniowe, dokumenty windykacyjne, drukarka online, pisma informacyjne ","60 000 - 100 000"]
[]
[]
["5. Szacowany czas wdrożenia."]
["Lp.","Usługa","Czas maksymalny określony przez Zamawiajacego na wdrożenie",null,"Czas potrzebny na wdrożenie\n(w dniach roboczych)"]
["1.","Wdrożenie usługi wydruku dokumentów rozliczeniowych i windykacyjnych zgodnie z przekazaną specyfikacją.","Wykonawca zobowiązany jest do bycia w gotowości rozpoczęcia świadczenia usługi  w dniu 31.12.2021r."]
["2.","Obsługa wydruku dokumentów przez Drukarkę Online  Załącznik nr 2, pkt. 1.2.","Wykonawca zobowiązany jest do bycia w gotowości rozpoczęcia świadczenia usługi  w dniu 31.12.2021r."]
["3.","Wdrożenie usługi przekazywania obrazów wydrukowanych dokumentów do wewnętrznego systemu GK Enea.","Wykonawca zobowiązany jest do bycia w gotowości rozpoczęcia świadczenia usługi  w dniu 31.12.2021r."]
["4.","Wdrożenie systemu raportowania zgodnego z wymaganiami GK Enea.","Wykonawca zobowiązany jest do bycia w gotowości rozpoczęcia świadczenia usługi  w dniu 31.12.2021r."]
[]
[]
["6. Istotne założenia przyjęte do wyceny zakresu prac przez Wykonawcę"]
["Lp.","Usługa"]
["1."]
["2."]
["3."]
["4."]
[]
[]
[]
[null,"Uwaga: na niebiesko zostały zaznaczone pola do uzupełnienia przez Wykonawców:"]
[]
[]
[null,"miejscowość i data","Pieczęć imienna i podpis przedstawiciela(i) Wykonawcy"]